[Event "Kupreichik Memorial Open 2018"]
[Site "Minsk"]
[Date "2018.06.21"]
[Round "2"]
[White "Tyurin, Artem"]
[Black "Kashtelyan, Valentin"]
[Result "1-0"]
[ECO "B32"]
[WhiteElo "1855"]
[BlackElo "1604"]
[Annotator "NA"]
[PlyCount "49"]
[EventDate "2018.06.21"]
[EventCountry "BLR"]
[SourceTitle "playchess.com"]
[Source "ChessBase"]
[SourceQuality "1"]
[TimeControl "900+10"]

1. e4 {[%emt 0:00:00]} c5 {[%emt 0:00:12]} 2. Nf3 {[%emt 0:00:00]} Nc6 {[%emt 0:00:03]} 3. d4 {[%emt 0:00:00]} cxd4 {[%emt 0:00:02]} 4. Nxd4 {[%emt 0:00:00]} Qc7 {[%emt 0:00:07]} 5. Nc3 {[%emt 0:00:06]} a6 {[%emt 0:00:01]} 6. g3 {[%emt 0:00:08]} e6 {[%emt 0:00:03]} 7. Bg2 {[%emt 0:00:02]} Nf6 {[%emt 0:00:04]} 8. O-O {[%emt 0:00:02]} Be7 {[%emt 0:00:02]} 9. Nb3 {[%emt 0:00:11]} O-O {[%emt 0:00:08]} 10. f4 {[%emt 0:00:11]} d6 {[%emt 0:00:11]} 11. Be3 {[%emt 0:00:02]} b5 {[%emt 0:00:22]} 12. g4 {[%emt 0:00:15]} Bb7 {[%emt 0:00:11]} 13. g5 {[%emt 0:00:31]} Nd7 {[%emt 0:00:06]} 14. Qh5 {[%emt 0:00:10]} g6 {[%emt 0:00:23]} 15. Qh6 {[%emt 0:00:11]} Rfe8 {[%emt 0:00:11]} 16. Rf3 {[%emt 0:00:03]} Bf8 {[%emt 0:00:07]} 17. Qh4 {[%emt 0:00:01]} Bg7 {[%emt 0:00:33]} 18. Rh3 {[%emt 0:00:01]} Nf8 {[%emt 0:00:07]} 19. f5 {[%emt 0:00:38]} exf5 {[%emt 0:02:00]} 20. Nd5 {[%emt 0:00:14]} Qd8 {[%emt 0:00:43]} 21. Bb6 {[%emt 0:00:12]} Qc8 {[%emt 0:00:41]} 22. Nf6+ {[%emt 0:00:20]} Bxf6 {[%emt 0:00:11]} 23. gxf6 {[%emt 0:00:01]} fxe4 {[%emt 0:01:07]} 24. Qh6 {[%emt 0:00:08]} Qxh3 {[%emt 0:01:18]} 25. Qg7# {[%emt 0:00:02]} 1-0

[Event "Kupreichik Memorial Open 2018"]
[Site "Minsk"]
[Date "2018.06.21"]
[Round "2"]
[White "Kruglikova, Viktorija"]
[Black "Stsepkina, Yauheniya"]
[Result "0-1"]
[ECO "B34"]
[WhiteElo "1839"]
[BlackElo "1591"]
[Annotator "NA"]
[PlyCount "146"]
[EventDate "2018.06.21"]
[EventCountry "BLR"]
[SourceTitle "playchess.com"]
[Source "ChessBase"]
[SourceQuality "1"]
[TimeControl "900+10"]

1. e4 {[%emt 0:00:00]} c5 {[%emt 0:00:01]} 2. Nf3 {[%emt 0:00:00]} Nc6 {[%emt 0:00:01]} 3. d4 {[%emt 0:00:00]} cxd4 {[%emt 0:00:01]} 4. Nxd4 {[%emt 0:00:00]} g6 {[%emt 0:00:01]} 5. Nc3 {[%emt 0:00:02]} Bg7 {[%emt 0:00:01]} 6. Be3 {[%emt 0:00:02]} Nf6 {[%emt 0:00:01]} 7. Be2 {[%emt 0:01:28]} O-O {[%emt 0:00:06]} 8. Qd2 {[%emt 0:00:10]} Re8 {[%emt 0:00:22]} 9. f4 {[%emt 0:00:33]} d5 {[%emt 0:01:48]} 10. e5 {[%emt 0:00:51]} Ng4 {[%emt 0:00:04]} 11. Bxg4 {[%emt 0:06:31]} Bxg4 {[%emt 0:00:05]} 12. h3 {[%emt 0:00:02]} Nxd4 {[%emt 0:01:53]} 13. Bxd4 {[%emt 0:00:08]} Bf5 {[%emt 0:00:31]} 14. g4 {[%emt 0:00:06]} Be4 {[%emt 0:00:00]} 15. Nxe4 {[%emt 0:00:04]} dxe4 {[%emt 0:00:01]} 16. O-O-O {[%emt 0:00:13]} f6 {[%emt 0:00:25]} 17. Qe3 {[%emt 0:00:22]} Qc7 {[%emt 0:00:49]} 18. Qxe4 {[%emt 0:00:32]} fxe5 {[%emt 0:00:31]} 19. Bxe5 {[%emt 0:00:48]} Bxe5 {[%emt 0:00:09]} 20. Qxe5 {[%emt 0:00:12]} Qxe5 {[%emt 0:00:27]} 21. fxe5 {[%emt 0:00:01]} Rad8 {[%emt 0:00:01]} 22. Rh2 {[%emt 0:02:29]} Rxd1+ {[%emt 0:00:45]} 23. Kxd1 {[%emt 0:00:01]} Kf7 {[%emt 0:00:01]} 24. Rd2 {[%emt 0:00:42]} Ke6 {[%emt 0:00:02]} 25. Ke2 {[%emt 0:00:04]} Rf8 {[%emt 0:00:12]} 26. Ke3 {[%emt 0:00:09]} Rf1 {[%emt 0:00:06]} 27. Rh2 {[%emt 0:03:30]} Re1+ {[%emt 0:00:13]} 28. Kd3 {[%emt 0:00:01]} Kxe5 {[%emt 0:00:41]} 29. Rf2 {[%emt 0:00:10]} Ke6 {[%emt 0:01:31]} 30. Rf3 {[%emt 0:00:11]} Rd1+ {[%emt 0:00:09]} 31. Kc4 {[%emt 0:00:04]} Rd2 {[%emt 0:00:23]} 32. Kc3 {[%emt 0:00:00]} Rd5 {[%emt 0:00:04]} 33. b3 {[%emt 0:00:12]} h5 {[%emt 0:00:48]} 34. gxh5 {[%emt 0:00:03]} Rxh5 {[%emt 0:00:33]} 35. a4 {[%emt 0:00:02]} Rf5 {[%emt 0:00:17]} 36. Re3+ {[%emt 0:00:03]} Kf6 {[%emt 0:00:04]} 37. Kd4 {[%emt 0:00:15]} Rf2 {[%emt 0:00:11]} 38. c4 {[%emt 0:00:06]} Rf4+ {[%emt 0:01:16]} 39. Kc5 {[%emt 0:00:02]} Rf5+ {[%emt 0:00:05]} 40. Kd4 {[%emt 0:00:02]} Rf4+ {[%emt 0:00:29]} 41. Kc5 {[%emt 0:00:01]} Rf5+ {[%emt 0:00:22]} 42. Kd4 {[%emt 0:00:01]} b6 {[%emt 0:00:41]} 43. Rg3 {[%emt 0:01:03]} g5 {[%emt 0:00:33]} 44. Re3 {[%emt 0:00:03]} e6 {[%emt 0:00:04]} 45. Rg3 {[%emt 0:00:15]} Rf4+ {[%emt 0:00:20]} 46. Kc3 {[%emt 0:00:09]} e5 {[%emt 0:00:28]} 47. a5 {[%emt 0:00:06]} bxa5 {[%emt 0:01:17]} 48. c5 {[%emt 0:00:02]} Rb4 {[%emt 0:00:41]} 49. Rd3 {[%emt 0:00:04]} Rb7 {[%emt 0:00:18]} 50. Rd6+ {[%emt 0:00:02]} Kf5 {[%emt 0:00:15]} 51. c6 {[%emt 0:00:22]} Rc7 {[%emt 0:00:05]} 52. Kc4 {[%emt 0:00:01]} e4 {[%emt 0:00:08]} 53. Kd4 {[%emt 0:00:30]} a6 {[%emt 0:00:29]} 54. Rh6 {[%emt 0:00:10]} Rc8 {[%emt 0:00:37]} 55. Rd6 {[%emt 0:00:14]} Rc7 {[%emt 0:00:28]} 56. Kc5 {[%emt 0:00:15]} e3 {[%emt 0:00:25]} 57. Rd1 {[%emt 0:00:01]} Kf4 {[%emt 0:00:38]} 58. Rd7 {[%emt 0:00:13]} e2 {[%emt 0:00:34]} 59. Rxc7 {[%emt 0:00:23]} e1=Q {[%emt 0:00:03]} 60. Rb7 {[%emt 0:00:03]} Qc3+ {[%emt 0:01:00]} 61. Kd6 {[%emt 0:00:20]} Qe5+ {[%emt 0:00:13]} 62. Kd7 {[%emt 0:00:01]} Qd5+ {[%emt 0:00:08]} 63. Kc7 {[%emt 0:00:12]} Ke5 {[%emt 0:00:06]} 64. Rb8 {[%emt 0:00:11]} Qd6+ {[%emt 0:00:10]} 65. Kb7 {[%emt 0:00:01]} Qb4+ {[%emt 0:00:19]} 66. Ka7 {[%emt 0:00:01]} Qc5+ {[%emt 0:00:13]} 67. Kb7 {[%emt 0:00:01]} Qb5+ {[%emt 0:00:21]} 68. Kc7 {[%emt 0:00:01]} Qc5 {[%emt 0:00:12]} 69. Re8+ {[%emt 0:00:07]} Kd5 {[%emt 0:00:12]} 70. Rd8+ {[%emt 0:00:01]} Ke6 {[%emt 0:00:03]} 71. Re8+ {[%emt 0:00:21]} Kf7 {[%emt 0:00:17]} 72. Rd8 {[%emt 0:00:21]} Qa7+ {[%emt 0:00:06]} 73. Kd6 {[%emt 0:00:12]} Qe7+ {[%emt 0:00:03]} 0-1

[Event "Kupreichik Memorial Open 2018"]
[Site "Minsk"]
[Date "2018.06.21"]
[Round "2"]
[White "Masjuk, Vladimir"]
[Black "Kozlov, Valentin"]
[Result "1-0"]
[ECO "B22"]
[WhiteElo "1829"]
[BlackElo "1553"]
[Annotator "NA"]
[PlyCount "27"]
[EventDate "2018.06.21"]
[EventCountry "BLR"]
[SourceTitle "playchess.com"]
[Source "ChessBase"]
[SourceQuality "1"]
[TimeControl "900+10"]

1. e4 {[%emt 0:00:00]} c5 {[%emt 0:00:01]} 2. c3 {[%emt 0:00:00]} Nc6 {[%emt 0:00:09]} 3. d4 {[%emt 0:00:00]} cxd4 {[%emt 0:00:02]} 4. cxd4 {[%emt 0:00:00]} e6 {[%emt 0:00:04]} 5. Nc3 {[%emt 0:00:02]} Be7 {[%emt 0:00:06]} 6. f4 {[%emt 0:00:03]} Nf6 {[%emt 0:00:05]} 7. Nf3 {[%emt 0:00:03]} O-O {[%emt 0:00:03]} 8. Bd3 {[%emt 0:00:04]} Nb4 {[%emt 0:00:18]} 9. Bb1 {[%emt 0:00:03]} d5 {[%emt 0:00:30]} 10. e5 {[%emt 0:00:06]} Nd7 {[%emt 0:00:37]} 11. O-O {[%emt 0:00:07]} Nb6 {[%emt 0:00:31]} 12. a3 {[%emt 0:01:19]} Nc6 {[%emt 0:00:22]} 13. Qd3 {[%emt 0:01:43]} a5 {[%emt 0:00:35]} 14. Qxh7# 1-0

[Event "Kupreichik Memorial Open 2018"]
[Site "Minsk"]
[Date "2018.06.21"]
[Round "2"]
[White "Pashkov, Vladimir M"]
[Black "Tkachou, Pavel"]
[Result "0-1"]
[ECO "D05"]
[WhiteElo "1812"]
[BlackElo "1535"]
[Annotator "NA"]
[PlyCount "88"]
[EventDate "2018.06.21"]
[EventCountry "BLR"]
[SourceTitle "playchess.com"]
[Source "ChessBase"]
[SourceQuality "1"]
[TimeControl "900+10"]

1. d4 {[%emt 0:00:00]} e6 {[%emt 0:00:01]} 2. Nf3 {[%emt 0:00:03]} d5 {[%emt 0:00:04]} 3. e3 {[%emt 0:00:04]} Nf6 {[%emt 0:00:03]} 4. Bd3 {[%emt 0:00:02]} c5 {[%emt 0:00:06]} 5. b3 {[%emt 0:00:01]} Nc6 {[%emt 0:00:18]} 6. Bb2 {[%emt 0:00:15]} Nb4 {[%emt 0:00:59]} 7. Be2 {[%emt 0:00:04]} Qa5 {[%emt 0:00:19]} 8. Nbd2 {[%emt 0:01:10]} Ne4 {[%emt 0:02:27]} 9. a3 {[%emt 0:00:56]} Nxd2 {[%emt 0:00:57]} 10. Qxd2 {[%emt 0:00:08]} Nxc2+ {[%emt 0:00:04]} 11. Kd1 {[%emt 0:00:56]} Qxd2+ {[%emt 0:00:05]} 12. Kxd2 {[%emt 0:00:01]} Nxa1 {[%emt 0:00:01]} 13. Rxa1 {[%emt 0:00:05]} f6 {[%emt 0:01:17]} 14. Rc1 {[%emt 0:00:47]} b6 {[%emt 0:00:41]} 15. Ne1 {[%emt 0:00:37]} Bd7 {[%emt 0:01:03]} 16. Nd3 {[%emt 0:02:01]} cxd4 {[%emt 0:00:12]} 17. exd4 {[%emt 0:00:14]} Bd6 {[%emt 0:00:09]} 18. h3 {[%emt 0:00:26]} O-O {[%emt 0:00:18]} 19. b4 {[%emt 0:00:54]} Bb5 {[%emt 0:01:06]} 20. Re1 {[%emt 0:01:03]} Bxd3 {[%emt 0:01:49]} 21. Bxd3 {[%emt 0:00:20]} Rfe8 {[%emt 0:00:32]} 22. Bb5 {[%emt 0:00:35]} Re7 {[%emt 0:00:04]} 23. Bc6 {[%emt 0:00:04]} Rc8 {[%emt 0:00:15]} 24. b5 {[%emt 0:00:03]} Kf7 {[%emt 0:00:47]} 25. Kd3 {[%emt 0:00:13]} Rec7 {[%emt 0:00:38]} 26. Rc1 {[%emt 0:00:20]} Bf4 {[%emt 0:00:31]} 27. Rc2 {[%emt 0:00:07]} Ke7 {[%emt 0:00:04]} 28. g3 {[%emt 0:00:08]} Bd6 {[%emt 0:00:25]} 29. f4 {[%emt 0:00:59]} g5 {[%emt 0:01:18]} 30. Bc1 {[%emt 0:02:24]} gxf4 {[%emt 0:00:07]} 31. Bxf4 {[%emt 0:00:39]} Bxf4 {[%emt 0:00:03]} 32. gxf4 {[%emt 0:00:01]} Rg8 {[%emt 0:00:07]} 33. Re2 {[%emt 0:00:48]} Rg3+ {[%emt 0:00:33]} 34. Re3 {[%emt 0:00:31]} Rxe3+ {[%emt 0:00:02]} 35. Kxe3 {[%emt 0:00:01]} Kd6 {[%emt 0:00:01]} 36. f5 {[%emt 0:00:45]} exf5 {[%emt 0:00:07]} 37. Kf4 {[%emt 0:00:03]} Ke6 {[%emt 0:00:34]} 38. a4 {[%emt 0:00:20]} Rg7 {[%emt 0:00:02]} 39. Be8 {[%emt 0:01:27]} Rg1 {[%emt 0:00:10]} 40. Bh5 {[%emt 0:00:29]} Ra1 {[%emt 0:00:07]} 41. Be2 {[%emt 0:00:17]} Rxa4 {[%emt 0:00:04]} 42. Ke3 {[%emt 0:00:14]} f4+ {[%emt 0:00:01]} 43. Kd3 {[%emt 0:00:31]} f5 {[%emt 0:00:08]} 44. Kc3 {[%emt 0:00:10]} Ra3+ {[%emt 0:00:01]} 0-1

[Event "Kupreichik Memorial Open 2018"]
[Site "Minsk"]
[Date "2018.06.21"]
[Round "2"]
[White "Arlou, Valery"]
[Black "Cherepov, Alexej"]
[Result "0-1"]
[ECO "D02"]
[WhiteElo "1743"]
[BlackElo "2234"]
[Annotator "NA"]
[PlyCount "89"]
[EventDate "2018.06.21"]
[EventCountry "BLR"]
[SourceTitle "playchess.com"]
[Source "ChessBase"]
[SourceQuality "1"]
[TimeControl "900+10"]

1. d4 {[%emt 0:00:00]} d5 {[%emt 0:00:05]} 2. Nf3 {[%emt 0:00:00]} Nf6 {[%emt 0:00:03]} 3. Bf4 {[%emt 0:00:00]} c5 {[%emt 0:00:03]} 4. e3 {[%emt 0:00:00]} Nc6 {[%emt 0:00:02]} 5. c3 {[%emt 0:00:09]} Bg4 {[%emt 0:00:18]} 6. Nbd2 {[%emt 0:00:17]} e6 {[%emt 0:00:04]} 7. Bd3 {[%emt 0:00:08]} Be7 {[%emt 0:00:08]} 8. h3 {[%emt 0:00:13]} Bh5 {[%emt 0:00:02]} 9. O-O {[%emt 0:00:30]} O-O {[%emt 0:00:06]} 10. Rc1 {[%emt 0:01:33]} Re8 {[%emt 0:01:00]} 11. g4 {[%emt 0:00:48]} Bg6 {[%emt 0:00:05]} 12. Bxg6 {[%emt 0:00:04]} hxg6 {[%emt 0:00:02]} 13. Ne5 {[%emt 0:00:33]} Qb6 {[%emt 0:02:27]} 14. Qc2 {[%emt 0:00:48]} Rac8 {[%emt 0:00:11]} 15. Ndf3 {[%emt 0:00:23]} Ne4 {[%emt 0:00:21]} 16. Nxc6 {[%emt 0:02:05]} bxc6 {[%emt 0:01:23]} 17. Ne5 {[%emt 0:00:16]} Red8 {[%emt 0:00:25]} 18. f3 {[%emt 0:00:36]} Nf6 {[%emt 0:00:16]} 19. Qb3 {[%emt 0:03:05]} Qa6 {[%emt 0:00:43]} 20. a3 {[%emt 0:01:47]} c4 {[%emt 0:00:57]} 21. Qc2 {[%emt 0:00:06]} Rb8 {[%emt 0:00:06]} 22. Qh2 {[%emt 0:00:38]} Rb3 {[%emt 0:00:07]} 23. Rc2 {[%emt 0:00:06]} Qb7 {[%emt 0:00:12]} 24. Rff2 {[%emt 0:00:07]} Ne8 {[%emt 0:00:54]} 25. h4 {[%emt 0:00:14]} c5 {[%emt 0:04:14]} 26. g5 {[%emt 0:00:09]} cxd4 {[%emt 0:00:17]} 27. exd4 {[%emt 0:00:01]} Bd6 {[%emt 0:01:21]} 28. h5 {[%emt 0:00:34]} Bxe5 {[%emt 0:00:14]} 29. Bxe5 {[%emt 0:00:02]} Qe7 {[%emt 0:00:08]} 30. Bf4 {[%emt 0:00:26]} Nd6 {[%emt 0:00:15]} 31. hxg6 {[%emt 0:00:46]} fxg6 {[%emt 0:00:03]} 32. Bxd6 {[%emt 0:00:51]} Rxd6 {[%emt 0:00:10]} 33. Qe5 {[%emt 0:00:11]} Rb8 {[%emt 0:00:14]} 34. f4 {[%emt 0:01:20]} Rf8 {[%emt 0:00:28]} 35. Rce2 {[%emt 0:00:17]} Rf5 {[%emt 0:00:33]} 36. Qe3 {[%emt 0:00:03]} Rb6 {[%emt 0:00:14]} 37. Kg2 {[%emt 0:00:09]} Kf7 {[%emt 0:00:10]} 38. Kg3 {[%emt 0:00:06]} Qb7 {[%emt 0:00:13]} 39. Rh2 {[%emt 0:00:51]} Qb8 {[%emt 0:00:32]} 40. Qf2 {[%emt 0:00:55]} Rxg5+ {[%emt 0:00:10]} 41. Kf3 {[%emt 0:00:06]} Rf5 {[%emt 0:00:05]} 42. Ke3 {[%emt 0:00:09]} g5 {[%emt 0:00:11]} 43. Qf3 {[%emt 0:00:35]} gxf4+ {[%emt 0:00:40]} 44. Kf2 {[%emt 0:00:10]} Rxb2 {[%emt 0:00:12]} 45. Ke1 0-1

[Event "Kupreichik Memorial Open 2018"]
[Site "Minsk"]
[Date "2018.06.21"]
[Round "2"]
[White "Beliuga, Mikhail"]
[Black "Korniichuk, Oleksandra"]
[Result "0-1"]
[ECO "A05"]
[WhiteElo "1699"]
[BlackElo "1740"]
[Annotator "NA"]
[PlyCount "90"]
[EventDate "2018.06.21"]
[EventCountry "BLR"]
[SourceTitle "playchess.com"]
[Source "ChessBase"]
[SourceQuality "1"]
[TimeControl "900+10"]

1. Nf3 {[%emt 0:00:00]} Nf6 {[%emt 0:00:06]} 2. d4 {[%emt 0:00:00]} e6 {[%emt 0:00:05]} 3. c4 {[%emt 0:00:16]} Be7 {[%emt 0:00:17]} 4. Nc3 {[%emt 0:00:33]} O-O {[%emt 0:00:31]} 5. e4 {[%emt 0:00:28]} d5 {[%emt 0:00:25]} 6. e5 {[%emt 0:00:49]} Ne4 {[%emt 0:01:14]} 7. Bd3 {[%emt 0:00:05]} Nxc3 {[%emt 0:00:34]} 8. bxc3 {[%emt 0:00:01]} dxc4 {[%emt 0:01:06]} 9. Bxc4 {[%emt 0:00:02]} c5 {[%emt 0:00:06]} 10. O-O {[%emt 0:00:21]} Nc6 {[%emt 0:00:50]} 11. Rb1 {[%emt 0:01:26]} b6 {[%emt 0:00:34]} 12. Be3 {[%emt 0:01:45]} cxd4 {[%emt 0:00:27]} 13. cxd4 {[%emt 0:00:48]} Bb7 {[%emt 0:00:36]} 14. Qe2 {[%emt 0:02:02]} Nb4 {[%emt 0:00:25]} 15. Rbc1 {[%emt 0:03:18]} Rc8 {[%emt 0:00:49]} 16. Nd2 {[%emt 0:01:39]} Nd5 {[%emt 0:00:20]} 17. f4 {[%emt 0:00:14]} Nxe3 {[%emt 0:00:39]} 18. Qxe3 {[%emt 0:00:02]} Qd7 {[%emt 0:00:35]} 19. f5 {[%emt 0:01:08]} Rfd8 {[%emt 0:04:42]} 20. Nb3 {[%emt 0:01:05]} Bd5 {[%emt 0:00:57]} 21. Bxd5 {[%emt 0:01:20]} Qxd5 {[%emt 0:00:03]} 22. fxe6 {[%emt 0:00:09]} Qxe6 {[%emt 0:00:14]} 23. Rxc8 Rxc8 {[%emt 0:00:01]} 24. Rc1 {[%emt 0:01:01]} Rxc1+ 25. Qxc1 {[%emt 0:00:00]} Qd5 {[%emt 0:01:00]} 26. Qc8+ {[%emt 0:00:29]} Bf8 {[%emt 0:00:01]} 27. Qc2 {[%emt 0:00:01]} a5 {[%emt 0:00:10]} 28. Qd3 {[%emt 0:00:20]} Bc5 {[%emt 0:01:19]} 29. Qb5 {[%emt 0:00:12]} Bxd4+ {[%emt 0:00:08]} 30. Nxd4 {[%emt 0:00:08]} Qxd4+ {[%emt 0:00:02]} 31. Kf1 {[%emt 0:00:01]} h6 {[%emt 0:00:14]} 32. e6 {[%emt 0:00:21]} Qf6+ {[%emt 0:00:07]} 33. Kg1 {[%emt 0:00:05]} Qxe6 {[%emt 0:00:02]} 34. Qb1 {[%emt 0:00:08]} Qe3+ {[%emt 0:00:03]} 35. Kf1 {[%emt 0:00:02]} Qf4+ {[%emt 0:00:15]} 36. Kg1 {[%emt 0:00:02]} Qd4+ {[%emt 0:00:01]} 37. Kf1 {[%emt 0:00:02]} Qc4+ {[%emt 0:00:03]} 38. Kf2 {[%emt 0:00:14]} b5 {[%emt 0:00:03]} 39. Qb2 {[%emt 0:00:28]} b4 {[%emt 0:00:11]} 40. Qd2 {[%emt 0:00:22]} a4 {[%emt 0:00:10]} 41. h3 {[%emt 0:00:10]} b3 {[%emt 0:00:05]} 42. axb3 {[%emt 0:00:05]} axb3 {[%emt 0:00:01]} 43. Qd8+ {[%emt 0:00:03]} Kh7 {[%emt 0:00:02]} 44. Qb6 {[%emt 0:00:12]} Qc2+ {[%emt 0:00:00]} 45. Kg1 {[%emt 0:00:01]} b2 {[%emt 0:00:00]} 0-1

[Event "Kupreichik Memorial Open 2018"]
[Site "Minsk"]
[Date "2018.06.21"]
[Round "2"]
[White "Ustiugov, Boris"]
[Black "Talma, Sergei"]
[Result "0-1"]
[ECO "D08"]
[WhiteElo "1614"]
[BlackElo "1858"]
[Annotator "NA"]
[PlyCount "71"]
[EventDate "2018.06.21"]
[EventCountry "BLR"]
[SourceTitle "playchess.com"]
[Source "ChessBase"]
[SourceQuality "1"]
[TimeControl "900+10"]

1. d4 d5 2. c4 e5 3. dxe5 d4 4. Nf3 Nc6 {[%emt 0:15:50]} 5. a3 a5 {[%emt 0:00:10]} 6. e3 Bc5 {[%emt 0:00:10]} 7. exd4 {[%emt 0:02:04]} Bxd4 {[%emt 0:00:00]} 8. Nxd4 {[%emt 0:00:37]} Qxd4 {[%emt 0:00:00]} 9. Qxd4 {[%emt 0:01:34]} Nxd4 {[%emt 0:00:00]} 10. Bd3 {[%emt 0:00:02]} Nb3 {[%emt 0:00:00]} 11. Ke2 {[%emt 0:00:30]} Nxa1 {[%emt 0:00:00]} 12. Nd2 {[%emt 0:00:10]} a4 {[%emt 0:00:00]} 13. Re1 {[%emt 0:00:23]} Ne7 {[%emt 0:00:00]} 14. h3 {[%emt 0:00:38]} Bf5 {[%emt 0:00:00]} 15. g4 {[%emt 0:00:11]} Bxd3+ {[%emt 0:00:00]} 16. Kxd3 {[%emt 0:00:01]} O-O-O+ {[%emt 0:00:00]} 17. Kc3 {[%emt 0:00:23]} Nc6 {[%emt 0:00:00]} 18. f4 {[%emt 0:00:20]} Nb3 {[%emt 0:00:00]} 19. Nxb3 {[%emt 0:00:46]} axb3 {[%emt 0:00:00]} 20. Be3 {[%emt 0:00:06]} Rhe8 {[%emt 0:00:00]} 21. Bc5 {[%emt 0:01:38]} b6 {[%emt 0:00:00]} 22. Bf2 {[%emt 0:00:04]} g5 {[%emt 0:00:00]} 23. Bg3 {[%emt 0:00:43]} gxf4 {[%emt 0:00:00]} 24. Bxf4 {[%emt 0:00:01]} Re6 {[%emt 0:00:00]} 25. Re3 {[%emt 0:03:14]} Rde8 {[%emt 0:00:00]} 26. c5 {[%emt 0:00:52]} Nxe5 {[%emt 0:00:00]} 27. cxb6 {[%emt 0:00:24]} cxb6 {[%emt 0:00:00]} 28. Kxb3 {[%emt 0:00:29]} Nc6 {[%emt 0:00:00]} 29. Rc3 {[%emt 0:00:08]} Kb7 {[%emt 0:00:00]} 30. Ka2 {[%emt 0:00:34]} Re4 {[%emt 0:00:00]} 31. Bg5 {[%emt 0:00:15]} R8e6 {[%emt 0:00:00]} 32. b4 {[%emt 0:00:34]} f6 {[%emt 0:00:00]} 33. Bc1 {[%emt 0:00:38]} b5 {[%emt 0:00:00]} 34. Rd3 {[%emt 0:01:54]} Rd4 {[%emt 0:00:17]} 35. Rf3 {[%emt 0:00:40]} Re2+ {[%emt 0:00:24]} 36. Kb3 {time} 0-1

[Event "Kupreichik Memorial Open 2018"]
[Site "Minsk"]
[Date "2018.06.21"]
[Round "2"]
[White "Halouchyts, Karalina"]
[Black "Zeliantsova, Kseniya"]
[Result "1-0"]
[ECO "B07"]
[WhiteElo "1603"]
[BlackElo "1844"]
[Annotator "NA"]
[PlyCount "71"]
[EventDate "2018.06.21"]
[EventCountry "BLR"]
[SourceTitle "playchess.com"]
[Source "ChessBase"]
[SourceQuality "1"]
[TimeControl "900+10"]

1. e4 {[%emt 0:00:00]} d6 {[%emt 0:00:02]} 2. d4 {[%emt 0:00:00]} Nf6 {[%emt 0:00:02]} 3. Nc3 {[%emt 0:00:00]} g6 {[%emt 0:00:01]} 4. Be3 {[%emt 0:00:30]} Bg7 {[%emt 0:00:01]} 5. f3 {[%emt 0:00:04]} O-O {[%emt 0:00:04]} 6. Qd2 {[%emt 0:00:04]} Nc6 {[%emt 0:00:02]} 7. O-O-O {[%emt 0:00:11]} e5 {[%emt 0:00:07]} 8. dxe5 {[%emt 0:01:25]} Nxe5 {[%emt 0:00:07]} 9. h4 {[%emt 0:00:48]} Be6 {[%emt 0:00:39]} 10. g4 {[%emt 0:00:47]} Bc4 {[%emt 0:01:24]} 11. f4 {[%emt 0:03:41]} Bxf1 {[%emt 0:05:04]} 12. fxe5 {[%emt 0:00:18]} Nxg4 {[%emt 0:00:14]} 13. Rxf1 {[%emt 0:01:01]} Nxe3 {[%emt 0:01:09]} 14. Qxe3 {[%emt 0:00:07]} Bxe5 {[%emt 0:00:14]} 15. Nf3 {[%emt 0:00:26]} Bg7 {[%emt 0:00:03]} 16. h5 {[%emt 0:01:10]} c6 {[%emt 0:00:27]} 17. Qd2 {[%emt 0:01:57]} Qe7 {[%emt 0:01:05]} 18. Qh2 {[%emt 0:03:20]} Bxc3 {[%emt 0:01:04]} 19. bxc3 {[%emt 0:00:29]} Rad8 {[%emt 0:00:48]} 20. Rfg1 {[%emt 0:01:05]} d5 {[%emt 0:01:46]} 21. Qe5 {[%emt 0:00:46]} Qa3+ {[%emt 0:02:52]} 22. Kb1 {[%emt 0:00:03]} Rfe8 {[%emt 0:00:21]} 23. Qf6 {[%emt 0:00:15]} Rd6 {[%emt 0:00:08]} 24. Qf4 {[%emt 0:00:19]} Rxe4 {[%emt 0:01:02]} 25. hxg6 {[%emt 0:00:09]} fxg6 {[%emt 0:00:16]} 26. Qh6 {[%emt 0:00:11]} Re7 {[%emt 0:00:08]} 27. Nd4 {[%emt 0:00:10]} Rf6 {[%emt 0:00:13]} 28. Nb3 {[%emt 0:00:09]} c5 {[%emt 0:00:11]} 29. Rf1 {[%emt 0:00:06]} Ref7 {[%emt 0:00:03]} 30. Rxf6 {[%emt 0:00:08]} Rxf6 {[%emt 0:00:02]} 31. Qxh7+ {[%emt 0:00:05]} Kf8 {[%emt 0:00:01]} 32. Qh8+ {[%emt 0:00:05]} Ke7 {[%emt 0:00:01]} 33. Re1+ {[%emt 0:00:12]} Kf7 {[%emt 0:00:44]} 34. Qh7+ {[%emt 0:00:15]} Kf8 {[%emt 0:00:04]} 35. Qe7+ {[%emt 0:00:14]} Kg8 {[%emt 0:00:06]} 36. Qxf6 {[%emt 0:00:03]} 1-0

[Event "Kupreichik Memorial Open 2018"]
[Site "Minsk"]
[Date "2018.06.21"]
[Round "2"]
[White "Korniichuk, Fedir"]
[Black "Polovkov, Valery"]
[Result "0-1"]
[ECO "A40"]
[WhiteElo "1568"]
[BlackElo "1830"]
[Annotator "NA"]
[PlyCount "68"]
[EventDate "2018.06.21"]
[EventCountry "BLR"]
[SourceTitle "playchess.com"]
[Source "ChessBase"]
[SourceQuality "1"]
[TimeControl "900+10"]

1. d4 {[%emt 0:00:00]} b6 {[%emt 0:00:07]} 2. c4 {[%emt 0:00:00]} Bb7 {[%emt 0:00:03]} 3. e3 {[%emt 0:00:06]} e6 {[%emt 0:00:02]} 4. Nc3 {[%emt 0:00:05]} g6 {[%emt 0:00:08]} 5. Nf3 {[%emt 0:00:04]} Bg7 {[%emt 0:00:01]} 6. Bd3 {[%emt 0:00:13]} Ne7 {[%emt 0:00:01]} 7. O-O {[%emt 0:00:06]} d6 {[%emt 0:00:05]} 8. b3 {[%emt 0:00:16]} Nd7 {[%emt 0:00:02]} 9. Bb2 {[%emt 0:00:03]} O-O {[%emt 0:00:03]} 10. Rc1 {[%emt 0:00:06]} a6 {[%emt 0:00:01]} 11. Qe2 {[%emt 0:00:08]} h6 {[%emt 0:00:02]} 12. Rfd1 {[%emt 0:00:04]} c6 {[%emt 0:00:40]} 13. Bb1 {[%emt 0:00:26]} b5 {[%emt 0:00:24]} 14. c5 {[%emt 0:01:05]} d5 {[%emt 0:00:13]} 15. h3 {[%emt 0:00:19]} f5 {[%emt 0:00:11]} 16. Ne1 {[%emt 0:00:41]} e5 {[%emt 0:00:31]} 17. Nc2 {[%emt 0:00:43]} e4 {[%emt 0:00:13]} 18. Rf1 {[%emt 0:00:49]} g5 {[%emt 0:00:11]} 19. Rcd1 {[%emt 0:00:40]} f4 {[%emt 0:00:09]} 20. exf4 {[%emt 0:00:46]} gxf4 {[%emt 0:00:02]} 21. Qg4 {[%emt 0:00:29]} Bc8 {[%emt 0:00:42]} 22. Qh4 {[%emt 0:01:02]} Qe8 {[%emt 0:00:25]} 23. Bc1 {[%emt 0:00:49]} Ng6 {[%emt 0:00:33]} 24. Qh5 {[%emt 0:00:30]} Nf6 {[%emt 0:00:03]} 25. Qe2 {[%emt 0:00:12]} f3 {[%emt 0:00:26]} 26. gxf3 {[%emt 0:00:21]} Bxh3 {[%emt 0:00:03]} 27. Rfe1 {[%emt 0:00:20]} Qd7 {[%emt 0:03:14]} 28. fxe4 {[%emt 0:00:40]} Nh4 {[%emt 0:04:22]} 29. e5 {[%emt 0:01:22]} Bg4 {[%emt 0:00:21]} 30. Qd3 {[%emt 0:01:38]} Bf3 {[%emt 0:01:31]} 31. e6 {[%emt 0:02:40]} Qe7 {[%emt 0:00:23]} 32. Bf4 {[%emt 0:00:55]} Ne4 {[%emt 0:00:21]} 33. Bg3 {[%emt 0:01:28]} Qxe6 {[%emt 0:01:49]} 34. Qf1 {[%emt 0:01:06]} Bxd1 {[%emt 0:01:05]} 0-1